[Event "European Amateur Chess-ch 2022"]
[Site "Zagreb"]
[Date "2022.08.16"]
[Round "3.5"]
[White "Gal, Moshe"]
[Black "Bouget, Alexandre"]
[Result "0-1"]
[ECO "D00"]
[WhiteElo "2111"]
[BlackElo "2282"]
[Annotator "TA"]
[PlyCount "78"]
[EventDate "2022.08.14"]
[EventCountry "CRO"]
[SourceTitle "playchess.com"]
[Source "ChessBase"]
[SourceQuality "1"]
[TimeControl "40/5400+30:1800+30"]

{[%evp 9,78,2,0,-3,3,-4,-5,-9,0,12,33,32,47,27,11,2,25,10,25,29,24,20,23,33,35,0,0,0,0,0,42,38,45,44,56,63,63,53,56,56,60,63,49,58,64,66,71,12,12,12,54,-93,-93,-169,-153,-155,-160,-152,-157,-494,-500,-564,-570,-556,-576,-645,-647,-699,-708,-1354,-1294]} 1. d4 Nf6 2. Nf3 g6 3. Bf4 Bg7 4. Nc3 d5 5. Nb5 Na6 6. e3 {D00: 1 d4 d5: Unusual lines.} O-O {6...0-0 is better than 6...c6.} 7. Be2 c6 8. Nc3 {The position is equal.} Qb6 9. Rb1 {[#]} Be6 $146 ({Predecessor:} 9... c5 10. O-O cxd4 11. exd4 Bf5 12. a3 Rac8 13. h3 Rfd8 14. Ne5 Ne4 15. f3 Nec5 16. dxc5 Qxc5+ {0-1 (24) Skoberne,J (2562)-Sonis,F (2536) Terme Catez 2021}) 10. O-O Ne4 11. Ng5 Nxg5 12. Bxg5 f6 13. Bh4 {[%cal Ob2b4]} Bf7 14. Na4 Qa5 15. c3 {[%cal Bc2c3,Bc3b4][%mdl 32]} b5 {[#]} 16. b4 $1 Nxb4 (16... Qc7 17. Nb2) 17. cxb4 (17. Rxb4 $5 {[%cal Ra4c5]} bxa4 18. Qc2 $11) 17... Qxa4 18. Qxa4 bxa4 19. Rfc1 Rfc8 20. Ba6 {[%mdl 1024] White has compensation.} Rc7 21. a3 Rb8 22. Rc5 e5 23. Bg3 Rb6 24. Be2 Re7 25. dxe5 fxe5 26. Rbc1 Be8 27. Bh4 Rf7 28. Bg4 (28. Ra5 $16) 28... Bd7 $11 29. Bd1 e4 {...Bb2 is the strong threat.} 30. R1c2 {[#] Against Bb2} ({Don't play} 30. Bxa4 Bb2 31. Rb1 Bxa3 $17) (30. Ra5 $1 $14) 30... Bf8 $1 $17 {Black is more active.} 31. Ra5 {[#]} (31. Be2 $17 {might work better.}) 31... c5 $1 $19 32. Raxc5 Bxc5 33. Rxc5 Rc6 34. Rxd5 $2 {Loses the game.} (34. Rxc6 $17 Bxc6 35. Kf1) 34... Rc1 {Black is clearly winning.} 35. Kf1 Bg4 36. Ke1 Rfc7 37. Bf6 Kf7 38. Bb2 Rb1 {aiming for ...Bxd1.} 39. Rd2 Bxd1 {Weighted Error Value: White=0.39/Black=0.05 (flawless)} 0-1

[Event "European Amateur Chess-ch 2022"]
[Site "Zagreb"]
[Date "2022.08.16"]
[Round "3.6"]
[White "Grgantov, Marin"]
[Black "Vujec, Ivan"]
[Result "0-1"]
[ECO "B12"]
[WhiteElo "2048"]
[BlackElo "2192"]
[Annotator "TA"]
[PlyCount "120"]
[EventDate "2022.08.14"]
[EventCountry "CRO"]
[SourceTitle "playchess.com"]
[Source "ChessBase"]
[SourceQuality "1"]
[TimeControl "40/5400+30:1800+30"]

{[%evp 9,120,0,30,22,50,8,10,10,4,0,12,6,0,0,12,14,95,-60,23,-42,-39,-68,40,39,50,-23,-13,-28,22,14,58,52,27,27,67,41,37,44,39,11,46,0,8,-22,62,64,112,38,54,0,83,-51,-61,-45,0,-7,67,-75,-85,-198,-198,-189,-199,-199,-195,-175,-165,-222,-229,-270,-184,-337,-323,-503,-503,-507,-497,-1194,-574,-566,-566,-559,-549,-542,-503,-519,-513,-746,-755,-1099,-1044,-1147,-1164,-948,-699,-1229,-1218,-1293,-1293,-1265,-1196,-29944,-1160,-1156,-1139,-1091,-1093,-970,-956,-1315,-1275,-5026,-4914]} 1. e4 c6 2. d4 d5 3. e5 c5 4. dxc5 e6 5. a3 Nc6 6. Nf3 $1 {aiming for b4. B12: Caro-Kann: Advance Variation.} Qc7 7. Bb5 {Black should prevent b4.} Bxc5 8. b4 {The position is equal.} Bb6 9. Bb2 Nge7 10. O-O a5 {[#]} 11. bxa5 $146 ({Predecessor:} 11. Nbd2 Bd7 12. c4 axb4 13. axb4 Rxa1 14. Qxa1 Nxb4 15. Qa8+ Qc8 16. Qa4 Nd3 17. Ba3 Bxb5 18. Qxb5+ {0-1 (38) Zdrazil,T (2142)-Lee,Z (1747) Olomouc 2019}) 11... Rxa5 12. a4 Ng6 (12... O-O $11 {keeps the balance.}) 13. h4 $2 (13. c4 $16) 13... Bd7 (13... O-O $15) 14. Bc3 (14. Na3 $11) 14... Ra8 $15 {[%cal Rc6e5]} 15. Re1 Ba5 (15... h6 $1 $15) 16. h5 $14 {Strongly threatening Bxa5.} Nge7 17. Qd2 (17. h6 $14) 17... h6 $11 18. Qf4 f5 ({Black should try} 18... Bb6) 19. Bxa5 Qxa5 20. Nbd2 O-O 21. Nb3 Qa7 22. Red1 Be8 23. Qh4 Bf7 24. Nbd4 Qb8 25. Qf4 (25. c4 $14 {is superior.}) 25... Qe8 26. Rdb1 Nc8 (26... Bxh5 $11 27. Bxc6 (27. Nxe6 Ng6 $15) 27... Nxc6) 27. c4 $14 {Hoping for cxd5.} Bxh5 {[#]} (27... N8e7 $14) 28. cxd5 (28. Nxe6 $1 $16 {[%mdl 512]} Bxf3 29. Qxf3 (29. Nxf8 Be4 $14) 29... Qxe6 30. cxd5 Nxe5 31. dxe6 Nxf3+ 32. gxf3) 28... exd5 29. Rc1 (29. e6 $14) 29... N8a7 (29... N8e7 $1 $11) 30. Nxf5 ({White should play} 30. Bxc6 $16 bxc6 31. e6 (31. Nxf5 Bxf3 32. Qxf3 Qxe5 $17)) 30... Bxf3 $15 31. Qxf3 Qxe5 32. Bd3 Nb4 {[#]} (32... Kh8 $11) 33. Re1 (33. Nxh6+ $1 $14 {stays ahead.} gxh6 34. Qg4+ Qg7 35. Qxb4) 33... Qf6 $17 {...Nac6 is the strong threat. Black keeps a firm grip on the game.} 34. Ne7+ {[#]} (34. Bb1 $17 Rae8 35. Qd1 Qxa1 36. Nxh6+ gxh6 37. Rxe8 Rxe8 38. Bh7+ Kxh7 39. Qxa1) 34... Qxe7 $3 $19 {[%mdl 512]} 35. Rxe7 {[%cal Of3g4] White wants to mate with Qg4!} Rxf3 36. gxf3 Nxd3 37. Rxb7 Nc6 38. Rb6 {[#]} (38. Kh2 {was worth a try.}) 38... Na5 $1 39. Rb5 d4 {Threatens to win with ...Nf4.} 40. Kg2 $2 (40. Rd1 Nf4 41. Rf5) 40... Nf4+ 41. Kg3 (41. Kh2 $142) 41... Ne2+ 42. Kg2 Nc3 43. Kf1 (43. Rb6 $142 d3 44. Rd6) 43... d3 (43... Nxb5 $142 44. axb5 d3) 44. Rc5 Nb3 {[%csl LRa1,LRa4,LRc5]} 45. Rxc3 Nxa1 46. Rxd3 {[%mdl 4096] Endgame KRN-KR} Nc2 47. Rc3 Nd4 48. Ra3 Ra5 49. Kg2 Ne6 50. Kg3 Nc5 51. Rc3 Nxa4 52. Ra3 Rg5+ 53. Kf4 Nc5 54. Ra8+ Kh7 55. Re8 Nd7 (55... Nd3+ $142 56. Ke3 Re5+ 57. Rxe5 Nxe5 58. Ke4 {[#]} Kg6 $1 59. f4 Ng4 60. f5+ Kg5 61. f6 Nxf6+ 62. Kf3 h5 63. Ke3 h4 64. Ke2 Kf4 65. Kf1 Kf3 66. Kg1 g5 67. Kf1 h3 68. Ke1 h2 69. Kd2 h1=Q 70. Kc3 Qc1+ 71. Kb3 Nd5 72. Ka2 Qc2+ 73. Ka1 Qxf2 74. Kb1 Nb4 75. Kc1 Qc2#) 56. Rd8 {Black is clearly winning.} Nf6 57. Rc8 Kg6 58. Rc6 h5 {[%cal Bh6h5,Bh5h4][%mdl 32]} 59. Ke3 h4 60. f4 Rg1 {Weighted Error Value: White=0.66/Black=0.40} 0-1

[Event "European Amateur Chess-ch 2022"]
[Site "Zagreb"]
[Date "2022.08.16"]
[Round "3.7"]
[White "Roska, Branislav"]
[Black "Begic, Domagoj"]
[Result "0-1"]
[ECO "B07"]
[WhiteElo "2153"]
[BlackElo "2026"]
[Annotator "TA"]
[PlyCount "136"]
[EventDate "2022.08.14"]
[EventCountry "CRO"]
[SourceTitle "playchess.com"]
[Source "ChessBase"]
[SourceQuality "1"]
[TimeControl "40/5400+30:1800+30"]

{[%evp 15,136,0,8,-35,0,0,0,-35,-25,-34,-30,-46,-35,-63,-52,-67,-70,-65,-13,-14,-5,0,-8,-27,0,0,38,38,33,31,69,62,79,78,83,57,62,40,36,39,39,28,34,34,42,0,0,0,0,0,0,0,0,0,0,0,0,0,0,0,0,0,0,0,0,0,0,0,14,10,182,193,68,159,88,76,154,154,155,158,154,148,152,155,155,0,0,-6295,-6295,-29963,-6527,-29964,-29966,-29958,-29957,-29969,-29971,-29971,-29972,-29972,-29973,-29973,-29973,-29980,-29981,-29980,-29981,-29981,-29982,-29982,-29983,-29989,-29990,-29991,-29992,-29992,-29990,-29992,-29993,-29994,-29995,-29995,-29993]} 1. e4 d6 2. d4 Nf6 3. Nc3 e5 4. dxe5 dxe5 5. Qxd8+ Kxd8 6. Bg5 Be6 7. Nf3 Nbd7 8. O-O-O Kc8 9. a3 {B07: Pirc Defence: Miscellaneous Systems.} h6 10. Bh4 a6 {[#]} 11. Bxf6 $146 {The position is equal.} ({Predecessor:} 11. Be2 b5 12. Bxf6 gxf6 13. Nh4 c6 14. h3 h5 15. Nf5 a5 16. Kb1 Nc5 17. Bd3 {0-1 (28) Schwarhofer,C (2379)-Juhasz,K (2410) Austria 2019}) 11... gxf6 12. Nh4 Bc5 13. Rd2 c6 (13... b5 {is interesting.} 14. g3 c6 15. Nf5 Kc7) 14. Nd1 Kc7 15. Bd3 b5 {Black is more active.} 16. Ne3 Rhd8 (16... Nb6 $15) 17. Nhf5 $11 Bxe3 (17... Nb6 {looks sharper.} 18. Be2 Rxd2 19. Kxd2 Na4) 18. Nxe3 Nc5 19. Rhd1 Rd7 20. f3 a5 21. Be2 Rad8 22. Rxd7+ Rxd7 23. Rxd7+ Nxd7 $14 {[%mdl 4096] Endgame KBN-KBN} 24. Kd2 Kd6 25. Ke1 Kc5 26. b3 Nb6 27. Kd2 Nc8 28. Bd1 Nd6 29. g4 b4 30. a4 Kd4 31. Nf1 c5 $1 32. Ng3 {[%cal Rg3e2]} c4 33. Nh5 cxb3 34. cxb3 Nb7 35. Ng3 Kc5 36. Kc2 Kd6 37. Nf1 Kc5 38. Kd3 Kd6 {Strongly threatening ...Nc5+.} 39. Nd2 Kc5 40. Ke3 Nd8 41. Be2 Nc6 42. Bc4 {With the idea Bxe6.} Nd4 (42... Bc8 $1 $11) 43. Bxe6 $18 fxe6 {KN-KN} 44. Kd3 {Prevents Nc2.} Nc6 45. h4 {[%cal Bh2h4,Bh4h5][%mdl 32]} Nd4 ({Black should play} 45... Kb6) 46. h5 $16 Nc6 47. Nc4 Nd4 48. Nxa5 {Black must now prevent Nb7+.} Nxf3 49. Nb7+ $1 Kb6 50. Nd8 ({Only move:} 50. Nd6 $1 $16 {[%cal Rd6f7] Nf7 is the strong threat.} Nh2 51. Ne8 Nxg4 52. Ng7) 50... Ng5 $11 {Hoping for ...Kc7.} 51. Kc4 $2 {[%mdl 8192] Black keeps a firm grip on the game.} (51. a5+ $11 Kxa5 52. Nc6+ Kb5 53. Ne7) 51... Kc7 $19 52. Nxe6+ Nxe6 53. Kxb4 {KN-KP} Ng5 {Black mates.} 54. Kc4 Nxe4 55. b4 Nd6+ 56. Kd5 e4 57. Kd4 Kc6 $1 58. a5 Kb5 59. Ke3 {[#]} Kc4 $1 60. a6 {[#]} Kd5 $1 61. a7 Nc4+ 62. Kf4 Nb6 63. Kf5 e3 64. Kxf6 e2 65. g5 hxg5 66. Kxg5 e1=Q 67. h6 Qe5+ 68. Kg6 Qh8 {Weighted Error Value: White=0.39/Black=0.11 (very precise)} 0-1

[Event "European Amateur Chess-ch 2022"]
[Site "Zagreb"]
[Date "2022.08.16"]
[Round "3.8"]
[White "Jonsson, Gauti Pall"]
[Black "Havas, Janko"]
[Result "1/2-1/2"]
[ECO "B03"]
[WhiteElo "2071"]
[BlackElo "2143"]
[Annotator "TA"]
[PlyCount "67"]
[EventDate "2022.08.14"]
[EventCountry "CRO"]
[SourceTitle "playchess.com"]
[Source "ChessBase"]
[SourceQuality "1"]
[TimeControl "40/5400+30:1800+30"]

{[%evp 12,67,15,8,35,23,39,42,33,15,60,53,52,50,49,50,38,36,70,0,0,0,0,0,0,0,4,0,0,0,14,16,15,14,29,20,31,21,22,22,11,10,32,0,18,0,0,-59,-59,-59,-60,-61,-13,-61,-61,-61,-61,-60]} 1. e4 {[%cal Be2e4,Be4e5][%mdl 32]} Nf6 2. e5 Nd5 3. c4 Nb6 4. d4 d6 5. exd6 exd6 6. Bd3 Nc6 {6...Be7 is the fancy move.} 7. Ne2 Bg4 {B03: Alekhine's Defence: Four Pawns Attack.} 8. Be3 Nb4 9. O-O Be7 {White is slightly better.} 10. Nbc3 Nxd3 11. Qxd3 {[#]} Qd7 $146 ({Predecessor:} 11... O-O 12. Ng3 d5 13. b3 c6 14. a4 dxc4 15. bxc4 Be6 16. d5 cxd5 17. Bxb6 Qxb6 18. cxd5 {1-0 (32) Skibbe,D (2083)-Markgraf,C (2040) Braunfels 2010}) 12. Ng3 {[#] Prevents Bf5. aiming for f3.} d5 $1 13. c5 {And now h3 would win.} Nc4 $1 {[%cal Bb6c4,Bc4a5,Ba5c6,Bc6e7][%mdl 32]} 14. Bc1 O-O 15. b3 (15. f4 $1 $14) 15... Na5 $11 16. Bd2 Nc6 17. h3 Be6 18. Nce2 Bh4 19. Bc3 Ne7 20. Nf4 Bxg3 21. Qxg3 Bf5 22. Rfe1 {[%cal Oe1e7]} Ng6 23. Nxg6 hxg6 24. Re3 Rfe8 25. Rae1 Re4 26. Rxe4 Bxe4 27. Qh4 Re8 28. Re3 Bb1 29. a3 ({White should play} 29. Rxe8+ $11 Qxe8 30. Qf4) 29... Rxe3 $15 30. fxe3 Bc2 31. b4 Be4 (31... f6 $1 $15) 32. Kh2 (32. Be1 $11) 32... f6 33. Qf2 Qa4 34. Bb2 {Weighted Error Value: White=0.13 (very precise) /Black=0.08 (flawless)} 1/2-1/2

[Event "European Amateur Chess-ch 2022"]
[Site "Zagreb"]
[Date "2022.08.16"]
[Round "3.9"]
[White "Novosel, Lovro"]
[Black "Basaric, Srdjan"]
[Result "1-0"]
[ECO "E09"]
[WhiteElo "2212"]
[BlackElo "2024"]
[Annotator "TA"]
[PlyCount "75"]
[EventDate "2022.08.14"]
[EventCountry "CRO"]
[SourceTitle "playchess.com"]
[Source "ChessBase"]
[SourceQuality "1"]
[TimeControl "40/5400+30:1800+30"]

{[%evp 17,75,8,34,9,29,26,27,-37,23,11,18,29,22,23,35,20,49,37,41,27,67,66,66,55,64,61,56,57,52,43,63,47,50,31,49,27,43,15,37,13,14,16,66,27,66,69,91,65,343,335,386,382,370,360,718,412,648,612,29990,6531]} 1. d4 d5 2. c4 c6 3. Nf3 Nf6 4. Qc2 e6 5. Nbd2 Be7 6. g3 O-O 7. Bg2 Nbd7 8. O-O b6 9. e4 Ba6 {9...dxc4 is setting a new trend.} 10. Re1 {E09: Closed Catalan: Main Line: 7 Qc2 c6 8 Nbd2.} Rc8 (10... dxc4 {keeps more tension.} 11. Nxc4 c5 12. d5 exd5 13. exd5 Nxd5 14. Ng5 Bxg5 15. Bxd5 Rb8) 11. e5 Ne8 12. Qa4 (12. cxd5 $11 cxd5 13. Qa4) 12... Nc7 (12... Bxc4 $15 13. Nxc4 b5 14. Qxa7 bxc4) 13. cxd5 $11 ({Not} 13. Qxc6 $2 {[#]} Nb5 $1 {[%mdl 512]} 14. cxb5 Rxc6 15. bxc6 Nb8 $19) 13... cxd5 14. Nf1 Bb5 15. Qd1 a5 16. h4 {[#]} h6 $146 ({Predecessor:} 16... Na6 17. a4 Bxf1 18. Bxf1 Nb4 19. Re2 Nb8 20. Bf4 Qd7 21. Rd2 Rc7 22. Bb5 Qc8 {1-0 (40) Przedmojski,R (2374)-Bobula,M (2379) Warsaw 2011}) 17. Ne3 Bb4 18. Bd2 Qe7 19. a3 Bxd2 20. Qxd2 Rfd8 21. Rac1 Ne8 22. Bf1 Bxf1 23. Rxf1 Nb8 24. Qd3 Qb7 25. Qb3 Rc7 26. Rc3 Rdc8 27. Rfc1 Qa6 28. a4 (28. g4 {feels hotter.} Nc6 29. Kg2 Qe2 30. Ng1) 28... Nc6 29. Nc2 {[%cal Be3c2,Bc2a3,Ba3b5,Bb5d6][%mdl 32]} h5 (29... Ne7 $11) 30. Kg2 g6 31. Na3 Nb4 32. Nb5 Rc6 {[%mdl 8192] A mistake that costs the game.} ({Black should try} 32... Rxc3 $1 $14 33. Rxc3 Qb7) 33. Nd6 $18 Rxc3 34. bxc3 ({Less strong is} 34. Rxc3 Rd8 35. Qd1 Qa7 $16) 34... Nxd6 35. exd6 {[#] aiming for d7.} Qb7 (35... Nc6 36. c4 dxc4 37. Qxc4 Qb7) 36. Rb1 Nd3 (36... Nc6 $142 37. Qxb6 Qxb6 38. Rxb6 Nd8) 37. Qb5 Rc4 38. Qe8+ {Weighted Error Value: White=0.23 (precise) /Black=0.70} 1-0

[Event "European Amateur Chess-ch 2022"]
[Site "Zagreb"]
[Date "2022.08.16"]
[Round "3.10"]
[White "Green, Michael"]
[Black "Fajdetic, Hrvoje"]
[Result "1/2-1/2"]
[WhiteElo "1997"]
[BlackElo "2151"]
[Annotator "TA"]
[PlyCount "17"]
[EventDate "2022.08.14"]
[EventCountry "CRO"]
[SourceTitle "playchess.com"]
[Source "ChessBase"]
[SourceQuality "1"]
[TimeControl "40/5400+30:1800+30"]

{[%evp 9,17,-45,11,11,9,18,19,0,14,-9]} 1. Nf3 d5 2. d4 e6 3. c4 c6 4. Nc3 Nd7 5. g4 {[%cal Bg2g4,Bg4g5,Bg5g6][%mdl 32] [#]} h5 $146 (5... dxc4 $15 6. e4 b5) ({Predecessor:} 5... Be7 6. Bf4 Ngf6 7. g5 Ne4 8. Rg1 Bb4 9. Qd3 Qa5 10. Bd2 Nxd2 11. Nxd2 Nf8 12. Nb3 Qa6 {0-1 (49) Pedersen,B-Svendsen,J Hammerfest 1993}) 6. g5 $11 {[%cal Og5g6] The position is equal. D31: Queen's Gambit Declined: Semi-Slav without ...Nf6 (+ Marshall Gambit and Noteboom) and Exchange Variation lines without ...Nf6.} dxc4 7. e4 {[%cal Be2e4,Be4e5][%mdl 32]} b5 8. g6 {[%mdl 1024] White has compensation.} f6 9. e5 {An uneventful encounter.  Weighted Error Value: White=0.05 (flawless) /Black=0.17 (very precise)} 1/2-1/2

[Event "European Amateur Chess-ch 2022"]
[Site "Zagreb"]
[Date "2022.08.16"]
[Round "3.11"]
[White "Ruzic, Pia Marie"]
[Black "Frouth, Nenad"]
[Result "1/2-1/2"]
[ECO "A16"]
[WhiteElo "1996"]
[BlackElo "2121"]
[Annotator "TA"]
[PlyCount "90"]
[EventDate "2022.08.14"]
[EventCountry "CRO"]
[SourceTitle "playchess.com"]
[Source "ChessBase"]
[SourceQuality "1"]
[TimeControl "40/5400+30:1800+30"]

{[%evp 11,90,27,33,31,26,22,29,27,46,35,43,29,71,55,51,54,82,88,64,44,73,67,66,72,78,72,51,0,39,15,41,41,45,47,62,41,42,44,46,43,75,19,33,-9,0,-9,-17,-9,0,0,0,0,0,0,37,45,63,0,0,0,45,29,30,30,40,29,22,-139,-146,-132,-132,-112,0,0,0,0,0,0,0,0,0]} 1. c4 Nf6 2. Nc3 d5 3. cxd5 Nxd5 4. g3 g6 5. Bg2 Nb6 6. Nf3 Bg7 7. d3 {has lost popularity (7.0-0). A16: English Opening: 1...Nf6 with ...d5.} O-O {has lost popularity (7...Nc6).} 8. h4 h5 9. Bg5 {White has an edge.} Nc6 10. Qd2 {[#]} Kh7 $146 ({Predecessor:} 10... Bf5 11. Bh6 e5 12. Bxg7 Kxg7 13. Ng5 Qd7 14. Nce4 Qe7 15. Nc3 Nd8 16. Qe3 c6 {½-½ (32) Tomic,B (2430)-Cabarkapa,N (2341) Sarajevo 2013}) 11. Rc1 Be6 12. O-O f6 13. Be3 Nd5 14. Nxd5 Bxd5 15. b4 Qd7 16. b5 Nd8 {[%cal Bc6d8,Bd8f7,Bf7h6,Bh6g4][%mdl 32]} 17. Rc5 {[%cal Oc5d5]} c6 18. bxc6 Bxc6 19. Ra5 (19. Rfc1 $14) 19... a6 (19... b6 $5 {[%cal Rb6a5]} 20. Ra3 e5 $11) 20. Rc1 Nf7 21. Qb4 Rac8 22. Rac5 Nh6 23. R5c2 {White is much more active.} Ng4 24. Bb6 Bh6 25. e3 Rfe8 26. Qd4 (26. Ne1 $16) 26... Qf5 27. e4 Qe6 28. Rb1 Bb5 29. Rxc8 Rxc8 (29... Qxc8 {is interesting.} 30. Qd5 e5 31. Nh2 Bg7) 30. a4 Bc6 31. Qb4 Qd7 {[%csl LRa4,LRd3]} 32. a5 Bb5 33. d4 Rc4 34. Qb3 (34. Qb2 $14) 34... Qc8 $11 {[%cal Og4f2]} 35. Bc5 e5 36. Bf1 Rxc5 37. dxc5 Qxc5 38. Qa2 (38. Bxb5 Qxf2+ 39. Kh1 Ne3 40. Qf7+ Bg7 41. Ng5+ Kh6 $15) 38... Nxf2 $1 39. Kg2 $2 ({Wrong is} 39. Qxf2 $2 Be3 40. Rb2 Bc6 $19) ({Better is} 39. Qf7+ $11 Kh8 40. Qxf6+ Bg7 41. Qd8+ (41. Qxg6 Nxe4+ 42. Kh2 Bc6 $11) 41... Kh7 42. Qd5 (42. Ng5+ Kh6 $11)) 39... Nxe4 $17 {[#] Strongly threatening ...Bc6.} 40. Bxb5 axb5 41. Rd1 Bg7 ({Black should play} 41... Qc7 $17 {And now ...Nc3 would win.} 42. Qb3 Nd6 43. Rxd6 Qxd6 44. Qf7+ Bg7 45. Qxb7 e4) 42. Rd7 $11 {The position is equal.} Nd6 {aiming for ...Nc4.} 43. Qe6 {[%csl LRd6,LRf6] Really sharp!} Ne4 {[#] ( -> ...Qf2+)} 44. Qa2 {Against Qf2+} Nd6 {White must now prevent ...Nc4.} 45. Qe6 {[%csl LRd6,LRf6]} Ne4 {Weighted Error Value: White=0.18 (very precise) /Black=0.13 (very precise)} 1/2-1/2

[Event "European Amateur Chess-ch 2022"]
[Site "Zagreb"]
[Date "2022.08.16"]
[Round "3.12"]
[White "Vukic, Aleksandar"]
[Black "Prihoda, Leonardo"]
[Result "1-0"]
[ECO "D28"]
[WhiteElo "2073"]
[BlackElo "1995"]
[Annotator "NA RC"]
[PlyCount "51"]
[EventDate "2022.08.14"]
[EventCountry "CRO"]
[SourceTitle "playchess.com"]
[Source "ChessBase"]
[SourceQuality "1"]
[TimeControl "40/5400+30:1800+30"]

1. d4 d5 2. c4 dxc4 3. Nf3 Nf6 4. e3 e6 5. Bxc4 c5 6. O-O Be7 7. Qe2 a6 8. Nc3 b5 9. Bb3 Nbd7 10. e4 b4 11. Na4 Bb7 12. Nxc5 Bxc5 13. dxc5 Nxe4 14. Rd1 Qe7 15. Ba4 Nexc5 16. Ne5 Bd5 17. Bg5 Qxg5 18. Rxd5 Nxa4 19. Rxd7 O-O 20. Nxf7 Rxf7 21. Rxf7 Rc8 22. Rf4 e5 23. Rxb4 Nc5 24. Rc4 e4 25. b4 Qf6 26. Rac1 1-0

[Event "European Amateur Chess-ch 2022"]
[Site "Zagreb"]
[Date "2022.08.16"]
[Round "3.13"]
[White "Vucenovic, Damian"]
[Black "Tomic, Stjepan"]
[Result "1/2-1/2"]
[ECO "B13"]
[WhiteElo "2053"]
[BlackElo "1990"]
[Annotator "NA RC"]
[PlyCount "46"]
[EventDate "2022.08.14"]
[EventCountry "CRO"]
[SourceTitle "playchess.com"]
[Source "ChessBase"]
[SourceQuality "1"]
[TimeControl "40/5400+30:1800+30"]

1. e4 c6 2. d4 d5 3. exd5 cxd5 4. Bd3 Nf6 5. c3 Bg4 6. Qb3 Qc7 7. Bg5 e6 8. Nd2 Bd6 9. h3 Bh5 10. Ngf3 Nc6 11. O-O O-O 12. Rfe1 Rfe8 13. Rac1 Bg6 14. Bxg6 hxg6 15. c4 Na5 16. Qc3 Nxc4 17. Ne5 Rac8 18. Nexc4 dxc4 19. Bxf6 gxf6 20. Qf3 b5 21. Ne4 Be7 22. Nxf6+ Bxf6 23. Qxf6 Qd8 1/2-1/2

[Event "European Amateur Chess-ch 2022"]
[Site "Zagreb"]
[Date "2022.08.16"]
[Round "3.14"]
[White "Korov, Zvonko"]
[Black "Starcevic, Danijel"]
[Result "1/2-1/2"]
[ECO "A30"]
[WhiteElo "2015"]
[BlackElo "1935"]
[Annotator "NA RC"]
[PlyCount "43"]
[EventDate "2022.08.14"]
[EventCountry "CRO"]
[SourceTitle "playchess.com"]
[Source "ChessBase"]
[SourceQuality "1"]
[TimeControl "40/5400+30:1800+30"]

1. Nf3 Nf6 2. c4 g6 3. b3 Bg7 4. Bb2 O-O 5. e3 c5 6. Be2 a6 7. O-O d5 8. d4 cxd4 9. Nxd4 dxc4 10. Bxc4 b5 11. Be2 Bb7 12. Nd2 Nbd7 13. Rc1 Rc8 14. Rxc8 Qxc8 15. Qb1 Qa8 16. Bf3 Rc8 17. Bxb7 Qxb7 18. Rc1 Rxc1+ 19. Qxc1 Ne4 20. Nxe4 Qxe4 21. Nf3 Bxb2 22. Qxb2 1/2-1/2

[Event "European Amateur Chess-ch 2022"]
[Site "Zagreb"]
[Date "2022.08.16"]
[Round "3.15"]
[White "Colev, Ivor"]
[Black "Maravic, Ivan"]
[Result "1-0"]
[ECO "C78"]
[WhiteElo "1950"]
[BlackElo "2009"]
[Annotator "NA RC"]
[PlyCount "91"]
[EventDate "2022.08.14"]
[EventCountry "CRO"]
[SourceTitle "playchess.com"]
[Source "ChessBase"]
[SourceQuality "1"]
[TimeControl "40/5400+30:1800+30"]

1. e4 e5 2. Nf3 Nc6 3. Bb5 a6 4. Ba4 Nf6 5. O-O b5 6. Bb3 Bc5 7. c3 d6 8. d4 Bb6 9. h3 Bb7 10. Re1 O-O 11. a4 Ne7 12. Qd3 Ng6 13. d5 c6 14. Bg5 h6 15. Bxf6 Qxf6 16. g3 Ne7 17. dxc6 Bxc6 18. Kg2 Rfd8 19. axb5 axb5 20. Rxa8 Rxa8 21. Na3 Rb8 22. Nc2 Bc5 23. Ne3 Qg6 24. Nd5 Nxd5 25. Bxd5 Bd7 26. Rd1 b4 27. Bc4 bxc3 28. bxc3 Qh5 29. g4 Qg6 30. Re1 Qf6 31. Rb1 Rxb1 32. Qxb1 h5 33. Qb8+ Kh7 34. Bxf7 Qxf7 35. Ng5+ Kg6 36. Nxf7 Kxf7 37. gxh5 Be8 38. Qd8 Bb5 39. Qg5 Bc4 40. Qg6+ Kf8 41. h6 gxh6 42. Qxh6+ Kg8 43. Qg6+ Kf8 44. h4 Bf7 45. Qf6 Ke8 46. h5 1-0